Workbook

Sheet timber frame wall
B1: version: 1.0. | S1: © 2020 Damian Janicki
E2: YourSpreadsheets™ Your Office Address Goes Here www.YourSpreadsheets.co.uk Tel: 010 1234 567890 (example only) | P2: TEST PROJECT NAME
W3: Revision | Z3: B
P4: Job No: | T4: 22668 | W4: Page: | Z4: C/01 | AJ4: =COUNTIF(AJ5:AJ7,TRUE) -> 0 | AM4: =COUNTIF(AM5:AM7,TRUE) -> 0 | AP4: =COUNTIF(AP5:AP27,TRUE) -> 0
C5: Section: | E5: TIMBER FRAME WALL EXAMPLE | P5: Prepared By: | T5: DJ | W5: Date: | Z5: =TODAY() -> 2020-03-16 | AJ5: =M11<1 -> FALSE | AK5: ERROR: stud wall must be at least 1m long | AM5: =FALSE -> FALSE | AN5: NOTE: racking resistance to BS5268-6.1: 1996 is restricted to max 2.7m high wall panels. Racking calculations might be incorrect. | AP5: =AA10<0 -> FALSE | AQ5: to perform racking resistance calculations timber frame wall should be in compression
AP6: =IF(K25<>AI17,IF(AH40="N/A",TRUE,FALSE),FALSE) -> FALSE | AQ6: to perform racking resistance calculations change the secondary sheathing material (current combination not viable)
C7: TIMBER FRAME WALL DATA | P7: LOADING | AP7: =M16>610 -> FALSE | AQ7: to perform racking resistance calculations stud spacing must be 610mm c/c max | AS7: SUMMARY:
C8: Building type (for racking resistance): | L8: dwelling | P8: Load duration: | X8: Short-term | AE8: 1 | AG8: Bending only | AH8: =AA10=0 -> FALSE | AP8: =OR(M15<63) -> FALSE | AQ8: to perform racking resistance calculations wall studs must be at least 38x63mm | AS8: =Y41 -> 0.29 | AT8: slenderness
C9: Timber grade = | M9: C24 | P9: Wind load perpendicular to wall 'W' [kN/m2] = | AA9: 0.25 | AE9: 2 | AG9: Bending and compression | AH9: =AA10>0 -> TRUE | AP9: FALSE | AQ9: to perform racking resistance calculations wall studs must grade C16 or better | AS9: =K53 -> 0.05 | AT9: bending
C10: Service class = | M10: 1 | P10: Line load on top of wall 'UDL' [kN/m] = | AA10: 65.00 | AG10: Bending and tension | AH10: =AA10<0 -> FALSE | AP10: =FALSE -> FALSE | AQ10: to perform racking resistance calculations wall must be min 2.4m2 | AS10: =K46 -> 0.49 | AT10: compression
C11: Timber frame wall length 'L' [m] = | M11: 6.00 | AG11: Compression only | AH11: =FALSE -> FALSE | AN11: 1 | AP11: =AND(X8<>AE28,X8<>AE29) -> FALSE | AQ11: to perform racking resistance calculations select short or very short load duration | AS11: =K59 -> 0.54 | AT11: combined
C12: Timber frame wall height 'H' [m] = | M12: 2.70 | P12: SUMMARY OF RESULTS | AE12: 0.70 | AG12: Tension only | AH12: =FALSE -> FALSE | AJ12: =IF(M15<72,1,0) -> 0 | AN12: C24 | AP12: =AF46=0 -> FALSE | AQ12: to perform racking resistance calculations primary board thickness must be within +/-25% of standard thickness | AS12: =Y49 -> 0.07 | AT12: deflection
C13: Effective height factor (out of plane of wall) = | M13: 0.85 | P13: Slenderness = | X13: =IF(OR(AH8,AH10,AH12),"N/A",FIXED(Y39,0)&IF(Y39<=Y40," < "," > ")&FIXED(Y40,0)) -> 52 < 180 | AA13: =IF(OR(AH8,AH10,AH12),"N/A",IF(Y39<=Y40,"OK","NOT OK")) -> OK | AE13: 0.85 | AN13: =ABS(AA10*M16/1000) -> 39.65 | AP13: =OR(AND(K21=AH22,M22<>AG58),AND(K25=AI23,M26<>AG58)) -> FALSE | AQ13: to perform racking resistance calculations plasterboard thicnkess on separating walls must be 30mm
C14: Stud breadth 'b' [mm] = | M14: 63.0 | P14: =IF(AF23=AE23,"Compression","Tension")&" parallel to grain =" -> Compression parallel to grain = | X14: =IF(AH8,"N/A",FIXED(K44,2)&IF(K44<=K45," < "," > ")&FIXED(K45,2)) -> 4.28 < 8.80 | AA14: =IF(AH8,"N/A",IF(K44<=K45,"OK","NOT OK")) -> OK | AE14: 1.00 | AJ14: =COUNTIF(AP5:AP20,TRUE) -> 0 | AN14: =INDEX(AF27:AF31,MATCH(X8,AE27:AE31,0)) -> Short | AP14: =AND(OR(K21=AH22,K25=AI23),M15<72) -> FALSE | AQ14: to perform racking resistance calculations wall studs must be at least 38x72mm for separating walls | AS14: WARNING:
C15: Stud depth 'h' [mm] = | M15: 147.0 | P15: Bending parallel to grain = | X15: =IF(OR(AH11,AH12),"N/A",FIXED(K51,2)&IF(K51<=K52," < "," > ")&FIXED(K52,2)) -> 0.61 < 13.39 | AA15: =IF(OR(AH11,AH12),"N/A",IF(K51<=K52,"OK","NOT OK")) -> OK | AE15: 1.50 | AP15: =OR(AND(OR(K21=AH21,K21=AH22),M23<>AF48),IF(K25<>AI17,AND(OR(K25=AH21,K25=AH22),M27<>AH48))) -> FALSE | AQ15: ="to perform racking resistance calculations specify standard "&IF($K$32=$AE$19,"nail","screw")&" diameter for plasterboard sheathing." -> to perform racking resistance calculations specify standard nail diameter for plasterboard sheathing. | AS15: =IF(AP4>0,INDEX(AQ5:AQ27,MATCH(TRUE,AP5:AP27,0)),"") -> 
C16: Stud spacing 's' [mm] = | M16: 610.0 | P16: =IF(AF23=AE23,"Axial compression","Axial tension")&" and bending check =" -> Axial compression and bending check = | X16: =IF(OR(AH8,AH11,AH12),"N/A",FIXED(K59,2)&IF(K59<=1," < "," > ")&FIXED(1,2)) -> 0.54 < 1.00 | AA16: =IF(OR(AH8,AH11,AH12),"N/A",IF(K59<=1,"OK","NOT OK")) -> OK | AE16: 2.00 | AP16: =OR(AND(OR(K21=AH21,K21=AH22),M24<>AF49),IF(K25<>AI17,AND(OR(K25=AH21,K25=AH22),M28<>AH49))) -> FALSE | AQ16: ="to perform racking resistance calculations specify standard "&IF($K$32=$AE$19,"nail","screw")&" spacing for plasterboard sheathing." -> to perform racking resistance calculations specify standard nail spacing for plasterboard sheathing.
C17: Thickness of top and bottom rails 'trails' [mm] = | M17: 100.0 | P17: Stud deflection = | X17: =IF(OR(AH11,AH12),"N/A",FIXED(Y48,2)&IF(Y48<=Y47," < "," > ")&FIXED(Y47,2)) -> 0.50 < 7.00 | AA17: =IF(OR(AH11,AH12),"N/A",IF(Y48<=Y47,"OK","NOT OK")) -> OK | AH17: Bitumen board | AI17: None | AJ17: =AI17 -> None | AK17: =AI17 -> None | AL17: =AI17 -> None | AN17: =63*M15 -> 9261 | AP17: =OR(M24>300,M24<50,AND(K25<>AI17,OR(M28>300,M28<50))) -> FALSE | AQ17: to perform racking resistance calculations nails should be spaced at centres not greater than 300mm and not less than 50mm.
C18: Aggregate opening size 'Ao' [m2] = | M18: 3.00 | P18: Total racking resistance = | X18: =IF($AJ$14<>0,"N/A ",FIXED(AK45,2))&" kN" -> 19.33 kN | AH18: Medium board | AI18: Bitumen board | AJ18: Bitumen board | AK18: Plasterboard | AL18: Plasterboard | AN18: =63*M15*M15/6 -> 226894.5 | AP18: =AND(K25<>AI17,AH46=0) -> FALSE | AQ18: to perform racking resistance calculations secondary board thickness must be within +/-25% of standard thickness.
C19: =IF(AJ4>0,INDEX(AK5:AK7,MATCH(TRUE,AJ5:AJ7,0)),IF(AM4>0,INDEX(AN5:AN7,MATCH(TRUE,AM5:AM7,0)),"")) ->  | AE19: Nails | AH19: OSB | AI19: Medium board | AJ19: Plasterboard | AK19: Plasterboard separating | AN19: =(M15*63^2)/6 -> 97240.5 | AP19: =OR(AND(K21=AH17,M24>75),AND(K25=AI18,M28>75)) -> FALSE | AQ19: to perform racking resistance calculations nail spacing for bitument board must not be greater than 75mm.
C20: SHEATHING & CLADDING DATA | P20: DIAGRAM | AE20: Screws | AH20: Particleboard | AI20: OSB | AJ20: Plasterboard separating | AN20: =63*M15*M15*M15/12 -> 16676745.75 | AP20: =OR(AND(K21<>AH21,K21<>AH22,M24>150),AND(K25<>AI17,K25<>AI22,K25<>AI23,M28>150)) -> FALSE | AQ20: to perform racking resistance calculations nail spacing should not be greater than 150mm for perimeter nails.
C21: Primary board type: | K21: OSB | AH21: Plasterboard | AI21: Particleboard | AN21: =(M15*63^3)/12 -> 3063075.75
C22: ="Thickness (standard: "&AF47&"mm) [mm] =" -> Thickness (standard: 9mm) [mm] = | M22: 9.0 | AH22: Plasterboard separating | AI22: Plasterboard | AN22: =SQRT(AN20/AN17) -> 42.43524479
C23: =IF(AND(OR(K21=AH21,K21=AH22),K32=AE20),"Screw","Nail")&" diameter (standard: "&AF48&"mm) [mm] =" -> Nail diameter (standard: 3mm) [mm] = | M23: 3.00 | AE23: Compression | AF23: =IF(AA10>=0,AE23,AE24) -> Compression | AH23: Plywood | AI23: Plasterboard separating | AN23: =SQRT(AN21/AN17) -> 18.18653348 | AP23: =AJ47>0.75 -> FALSE | AQ23: aggregate opening size is greater than 75% of wall area. Wall modification factor K106 is taken as zero.
C24: =IF(AND(OR(K21=AH21,K21=AH22),K32=AE20),"Screw","Nail")&" spacing (standard: "&AF49&"mm) [mm] =" -> Nail spacing (standard: 150mm) [mm] = | M24: 150.0 | AE24: Tension | AH24: Tempered hardboard | AI24: Plywood | AN24: 7200 | AP24: =AND(K29=AJ28,OR(M11<0.6,M30<0.6)) -> FALSE | AQ24: masonry cladding cannot be considered becasue wall height is less than 2.4m or wall length is less than 0.6m
C25: Secondary board type: | K25: Plywood | AI25: Tempered hardboard | AN25: 10800 | AP25: =M15<72 -> FALSE | AQ25: racking resistance reduced by 15% as wall studs are smaller than 38x72mm (for limitations see Table 2 in the BS)
C26: =IF(K25=AI17,"Thickness [mm] =","Thickness (standard: "&AH47&"mm) [mm] =") -> Thickness (standard: 9.5mm) [mm] = | M26: 9.5 | AP26: =AND(K21=AH22,OR(K25=AI17,K25=AI23)) -> FALSE | AQ26: when relaying only on plasterboard at separating walls for racking resistance, additional bracing may be required
C27: =IF(K25=AI17,"Nail diameter [mm] =",IF(AND(OR(K25=AI22,K25=AI23),K32=AE20),"Screw","Nail")&" diameter (standard: "&AH48&"mm) [mm] =") -> Nail diameter (standard: 3mm) [mm] = | M27: 3.00 | AE27: Accidental | AF27: Accidental | AN27: =IF(AN14="Accidental",2.25,(IF(AN14="Very short",1.75,(IF(AN14="Short",1.5,(IF(AN14="Medium",1.25,(IF(AN14="Long",1))))))))) -> 1.50 | AP27: =AND(K29=AJ28,M30>M11) -> FALSE | AQ27: masonry cladding is longer than timber frame wall. Calculations were not interrupted.
C28: =IF(K25=AI17,"Nail spacing [mm] =",IF(AND(OR(K25=AI22,K25=AI23),K32=AE20),"Screw","Nail")&" spacing (standard: "&AH49&"mm) [mm] =") -> Nail spacing (standard: 150mm) [mm] = | M28: 150.0 | AE28: Very short-term | AF28: Very Short | AJ28: Consider | AK28: 3.7 | AL28: 0.4 | AN28: =(IF(M15>300,0.81*((M15*M15+92300)/(M15*M15+56800)),IF(M15<72,1.17,(300/M15)^0.11))) -> 1.08
C29: Non-loadbearing masonry cladding: | K29: Consider | AE29: Short-term | AF29: Short | AJ29: None | AK29: 4.4 | AL29: 0.5 | AN29: =IF(AND(M16<=610,M11>3*M16/1000),1.1,1) -> 1.10
C30: Masonry cladding length 'Lm' [m] = | M30: 5.0 | AE30: Medium-term | AF30: Medium | AN30: =IF(AN24/AO32<5,1,AQ32) -> 0.68
C31: Wall ties density [ties/m2] = | M31: 3.7 | AE31: Long-term | AF31: Long | AN31: =ROUNDDOWN(IF(MAX(63,M15)<72,1.17,(300/MAX(63,M15))^0.11),2) -> 1.08 | AO31: additional cacls
C32: Plasterboard fixings: | K32: Nails | P32: =IF(M18>0,"Note 1: Additional studs may be required next to openings (NOT CHECKED)","") -> Note 1: Additional studs may be required next to openings (NOT CHECKED) | AH32: primary diameter | AI32: =AND(OR(K21=AH21,K21=AH22),M23<>AF48) -> FALSE | AK32: =M22&"mm "&K21 -> 9mm OSB | AN32: =AO32*AN30*AN27*AN29*IF(M10=3,0.6,1) -> 8.80 | AO32: 7.9 | AP32: =AO32*AN27*IF(M10=3,0.6,1) -> 11.85 | AQ32: =(0.5+(1+0.005*Y39)*PI()*PI()*AN24*IF(M10=3,0.8,1)/(2*1.5*Y39*Y39*AP32))-((0.5+(1+0.005*Y39)*PI()*PI()*AN24*IF(M10=3,0.8,1)/(2*1.5*Y39*Y39*AP32))^2-PI()*PI()*AN24*IF(M10=3,0.8,1)/(1.5*Y39*Y39*AP32))^0.5 -> 0.6753915485
AH33: primary spacing | AI33: =OR(AND(K21=AH17,M24>75),AND(K21<>AH21,K21<>AH22,M24>150),AND(OR(K21=AH21,K21=AH22,M24<50,M24>300),M24<>AF49)) -> FALSE | AK33: =IF(K25=AI17,"N/A",M26&"mm "&K25) -> 9.5mm Plywood | AN33: =AN13*1000/AN17 -> 4.28
C34: CALCULATIONS: SECTION PROPERTIES | P34: CALCULATIONS: MODIFICATION FACTORS | AH34: secondary diameter | AI34: =AND(OR(K25=AI22,K25=AI23),M27<>AH48) -> FALSE | AK34: ="63x"&M15&" @"&M16&" "&"C24" -> 63x147 @610 C24 | AN34: =AN33/AN32 -> 0.49
C35: Cross sectional area of wall stud 'A' = | K35: =AN17/100 -> 92.61 | M35: cm2 | P35: ="K2="&FIXED(1,2)&"|K3="&FIXED(AN27,2)&"|K7="&FIXED(AN28,2)&"|K8="&FIXED(AN29,2)&"|K12="&FIXED(IF(ISERROR(AN30),1,AN30),2)&"|K14="&FIXED(IF(OR(AH10,AH12),AN31,1),2) -> K2=1.00|K3=1.50|K7=1.08|K8=1.10|K12=0.68|K14=1.00 | AH35: secondary spacing | AI35: =OR(AND(K25=AI18,M28>75),AND(K25<>AI17,K25<>AI22,K25<>AI23,M28>150),AND(OR(K25=AI22,K25=AI23,M28<50,M28>300),M28<>AH49)) -> FALSE | AK35: =2.7*1000&"mm" -> 2700mm | AN35: =IF(AN32>AN33,"Compressive stress: OK","Compressive stress: NOT OK") -> Compressive stress: OK
C36: Section modulus of wall stud 'Zx' = | K36: =AN18/1000 -> 226.89 | M36: cm3 | AK36: =M11*1000&"mm" -> 6000mm | AN36: =(PI()*PI()*7200)/(Y39*Y39)*IF(M10=3,database!E57,1) -> 26.20
C37: Second moment of Area of wall stud 'Ix' = | K37: =AN20/10000 -> 1667.67 | M37: cm4 | P37: CALCULATIONS: SLENDERNESS | AK37: =IF(M18>0,"See Note 1","N/A") -> See Note 1 | AN37: =1-(1.5*AN33*AQ32/AN36) -> 0.83
C38: Radius of gyration of wall stud 'rx' = | K38: =AN22 -> 42.4 | M38: mm | P38: Effective stud length 'Le' = | Y38: =IF(OR(AH8,AH10,AH12),"N/A",2.7*M13-100/1000) -> 2.20 | AA38: m | AN38: =K51/(K52*AN37)+AN33/AN32 -> 0.54
C39: Minimum elastic modulus 'Emin' = | K39: =AN24 -> 7200 | M39: N/mm2 | P39: Stud slenderness ratio 'λ' = | Y39: =IF(OR(AH8,AH10,AH12),"N/A",2600*M13/AN22) -> 52.1 | AN39: =4.5*AN27*AN31*AN29*IF(M10=3,database!E57,1) -> 8.02
C40: Mean elastic modulus 'Emean' = | K40: =AN25 -> 10800 | M40: N/mm2 | P40: Permissible slenderness ratio 'λmax' = | Y40: 180 | AF40: =INDEX($AJ$53:$AJ$60,MATCH($K$21,$AF$53:$AF$60,0)) -> 1.680 | AH40: =IF($K$25=$AI$17,0,INDEX($AK$53:$AN$60,MATCH($K$21,$AF$53:$AF$60,0),INDEX($AE$53:$AE$60,MATCH($K$25,$AF$53:$AF$60,0)))) -> 0.840 | AN40: =AN13*1000/AN17 -> 4.28
P41: Utilisation factor = | Y41: =IF(OR(AH8,AH10,AH12),"N/A",Y39/Y40) -> 0.29 | AF41: =AF42*AF43*AF44 -> 1.000 | AH41: =AH42*AH43*AH44 -> 1.000 | AJ41: =AJ42*AJ43*AJ44*AJ45*AJ46 -> 1.146 | AK41: =(AF40*AF41+IF(K25<>AI17,AH40*AH41,0))*AJ41*M11 -> 17.33 | AN41: =AN40/AN39 -> 0.53
C42: CALCULATIONS: | G42: =IF(AF23=AE23,"COMPRESSION","TENSION")&" PARALLEL TO GRAIN" -> COMPRESSION PARALLEL TO GRAIN | P42: =IF(OR(AH8,AH10,AH12),"Slenderness check not applicable",IF(Y40>Y39,"Slenderness: OK","Slenderness: NOT OK")) -> Slenderness: OK | AF42: =IF(OR(K21=AH21,K21=AH22),IF($M$23>=2.65,1,$M$23/2.65),MIN(3.75,MAX(2.25,$M$23))/3) -> 1.000 | AH42: =IF($K$25=$AI$17,0,IF(OR(K25=AI22,K25=AI23),IF($M$27>=2.65,1,$M$27/2.65),MIN(3.75,MAX(2.25,$M$27))/3)) -> 1.000 | AJ42: =2.4/2.7 -> 0.889 | AN42: =IF(AN39>AN40,"Tensile stress: OK","Tensile stress: NOT OK") -> Tensile stress: OK
C43: =IF($AF$23=$AE$23,"Applied compression per stud 'N' =","Applied tension per stud 'T' =") -> Applied compression per stud 'N' = | K43: =IF(AH8,"N/A",AN13) -> 39.65 | M43: kN | AF43: =IF(OR(K25=AI22,K25=AI23),1,IF(AND(M24>AF49,OR(K21=AH21,K21=AH22)),0,1/(0.6*AF45+0.4))) -> 1.000 | AH43: =IF(AND(M28>AH49,OR(K25=AH21,K25=AH22)),0,1/(0.6*AH45+0.4)) -> 1.000 | AJ43: =IF(M11>=4.8,1.32,IF(M11<=2.4,M11/2.4,(M11/2.4)^0.4)) -> 1.320 | AK43: =IF(AND(K29=AJ28,M11>=0.6,M30>=0.6),MIN(25%*AK41,M30*INDEX(AL28:AL29,MATCH(M31,AK28:AK29,0))),0) -> 2.00 | AN43: =(K51/K52)+(AN40/AN39) -> 0.58
C44: =IF($AF$23=$AE$23,"Applied compressive stress per stud =","Applied tensile stress per stud =") -> Applied compressive stress per stud = | K44: =IF(AH8,"N/A",IF($AF$23=$AE$23,AN33,AN40)) -> 4.28 | M44: N/mm2 | P44: CALCULATIONS: WALL OUT OF PLANE DEFLECTION | AF44: =IF(AF46=0,0,2.8*AF46-AF46^2-0.8) -> 1.000 | AH44: =IF(OR($K$25=$AI$17,AH46=0),0,2.8*AH46-AH46^2-0.8) -> 1.000 | AJ44: =IF(AJ47>0.75,0,(1-1.3*(AJ47))^2) -> 0.576
C45: =IF($AF$23=$AE$23,"Permissible compressive stress per stud =","Permissible tensile stress per stud =") -> Permissible compressive stress per stud = | K45: =IF(AH8,"N/A",IF($AF$23=$AE$23,AN32,AN39)) -> 8.80 | M45: N/mm2 | P45: Allowable deflection multiplier = | Y45: 0.003 | AF45: =M24/AF49 -> 1.000 | AH45: =IF($K$25=$AI$17,0,M28/AH49) -> 1.000 | AJ45: =1+((0.09*AJ48-0.0015*AJ48^2)*(2.4/M11)^0.4) -> 1.540 | AK45: =AK41+AK43 -> 19.33
C46: Utilisation factor = | K46: =IF(AH8,"N/A",IF($AF$23=$AE$23,AN34,AN41)) -> 0.49 | P46: Maximum allowable deflection 'δlimit' = | Y46: 7.0 | AA46: mm | AF46: =IF(OR(M22/AF47>1.25,M22/AF47<0.75),0,M22/AF47) -> 1.000 | AH46: =IF($K$25=$AI$17,0,IF(OR(M26/AH47>1.25,M26/AH47<0.75),0,M26/AH47)) -> 1.000 | AJ46: 1.100
C47: =IF(AH8,"Compression parallel to grain check not applicable",IF($AF$23=$AE$23,AN35,AN42)) -> Compressive stress: OK | P47: Allowable deflection 'δallowable' = | Y47: =IF(OR(AH11,AH12),"N/A",MIN(Y46,Y45*2600)) -> 7.0 | AA47: mm | AF47: =INDEX($AG$53:$AG$60,MATCH($K$21,$AF$53:$AF$60,0)) -> 9 | AH47: =IF($K$25=$AI$17,0,INDEX($AG$53:$AG$60,MATCH($K$25,$AF$53:$AF$60,0))) -> 9.5 | AJ47: =M18/(M11*2.7) -> 0.185
C48: NOTE: end bearing on bottom rail not checked | P48: Actual bending deflection 'δbending' = | Y48: =IF(OR(AH11,AH12),"N/A",5*0.25*M16/1000*2600^4/(384*IF(AN29=1,AN24,AN25)*AN20)) -> 0.5 | AA48: mm | AF48: =INDEX($AH$53:$AH$60,MATCH($K$21,$AF$53:$AF$60,0)) -> 3 | AH48: =IF($K$25=$AI$17,0,INDEX($AH$53:$AH$60,MATCH($K$25,$AF$53:$AF$60,0))) -> 3 | AJ48: =MIN(10.5,AA10) -> 10.50
C49: CALCULATIONS: BENDING PARALLEL TO GRAIN | P49: Utilisation factor = | Y49: =IF(OR(AH11,AH12),"N/A",Y48/Y47) -> 0.07 | AF49: =INDEX($AI$53:$AI$60,MATCH($K$21,$AF$53:$AF$60,0)) -> 150 | AH49: =IF($K$25=$AI$17,0,INDEX($AI$53:$AI$60,MATCH($K$25,$AF$53:$AF$60,0))) -> 150
C50: Applied bending moment per stud 'M' = | K50: =IF(OR(AH11,AH12),"N/A",0.25*M16/1000*2.7^2/8) -> 0.14 | M50: kNm | P50: =IF(OR(AH11,AH12),"Deflection due to wind loading check not applicable",IF(Y48<=Y47,"Deflection due to wind loading: OK","Deflection due to wind loading: NOT OK")) -> Deflection due to wind loading: OK
C51: Applied bending stress per stud = | K51: =IF(OR(AH11,AH12),"N/A",(K50/AN18)*10^6) -> 0.61 | M51: N/mm2 | P51: =IF($Y$45>0.003,"NOTE: racking deflection not checked","") -> 
C52: Permissible bending stress per stud = | K52: =IF(OR(AH11,AH12),"N/A",VLOOKUP("C24",database!B5:I24,2,FALSE)*AN27*AN28*AN29*IF(M10=3,database!E57,1)) -> 13.39 | M52: N/mm2 | P52: CALCULATIONS: RACKING RESISTANCE
C53: Utilisation factor = | K53: =IF(OR(AH11,AH12),"N/A",K51/K52) -> 0.05 | P53: ="Primary board: Km="&FIXED(AF41,2)&"|K101="&FIXED(AF42,2)&"|K102="&FIXED(AF43,2)&"|K103="&FIXED(AF44,2) -> Primary board: Km=1.00|K101=1.00|K102=1.00|K103=1.00 | AE53: 2 | AF53: Bitumen board | AG53: 12.5 | AH53: 3 | AI53: 75 | AJ53: =IF($AJ$12=1,0.85,1)*0.9 -> 0.9 | AK53: N/A | AL53: =IF($AJ$12=1,0.85,1)*0.45 -> 0.45 | AM53: =IF($AJ$12=1,0.85,1)*0.3*IF(AND(K25=AI23,$K$32=$AE$19),1.5,1) -> 0.3 | AN53: =IF($AJ$12=1,0.85,1)*0.2*IF(AND($K$25=$AI$22,$K$32=$AE$19),1.5,1) -> 0.2
C54: =IF(OR(AH11,AH12),"Bending parallel to grain check not applicable",IF(K52>K51,"Bending stress: OK","Bending stress: NOT OK")) -> Bending stress: OK | P54: =IF($K$25=$AI$17,"No secondary board selected","Secondary board: Km="&FIXED(AH41,2)&"|K101="&FIXED(AH42,2)&"|K102="&FIXED(AH43,2)&"|K103="&FIXED(AH44,2)) -> Secondary board: Km=1.00|K101=1.00|K102=1.00|K103=1.00 | AE54: 1 | AF54: Medium board | AG54: 9 | AH54: 3 | AI54: 150 | AJ54: =IF($AJ$12=1,0.85,1)*1.68 -> 1.68 | AK54: =IF($AJ$12=1,0.85,1)*0.84 -> 0.84 | AL54: =IF($AJ$12=1,0.85,1)*0.28 -> 0.28 | AM54: =IF($AJ$12=1,0.85,1)*0.18*IF(AND(K25=AI23,$K$32=$AE$19),1.5,1) -> 0.18 | AN54: =IF($AJ$12=1,0.85,1)*0.12*IF(AND($K$25=$AI$22,$K$32=$AE$19),1.5,1) -> 0.12
P55: ="Kw="&FIXED(AJ41,2)&"|K104="&FIXED(AJ42,2)&"|K105="&FIXED(AJ43,2)&"|K106="&FIXED(AJ44,2)&"|K107="&FIXED(AJ45,2)&"|K108="&FIXED(AJ46,2) -> Kw=1.15|K104=0.89|K105=1.32|K106=0.58|K107=1.54|K108=1.10 | AE55: 1 | AF55: OSB | AG55: 9 | AH55: 3 | AI55: 150 | AJ55: =IF($AJ$12=1,0.85,1)*1.68 -> 1.68 | AK55: =IF($AJ$12=1,0.85,1)*0.84 -> 0.84 | AL55: =IF($AJ$12=1,0.85,1)*0.28 -> 0.28 | AM55: =IF($AJ$12=1,0.85,1)*0.18*IF(AND(K25=AI23,$K$32=$AE$19),1.5,1) -> 0.18 | AN55: =IF($AJ$12=1,0.85,1)*0.12*IF(AND($K$25=$AI$22,$K$32=$AE$19),1.5,1) -> 0.12
C56: CALCULATIONS: | H56: =IF(AF23=AE23,"AXIAL COMPRESSION","AXIAL TENSION")&" AND BENDING" -> AXIAL COMPRESSION AND BENDING | P56: Basic racking resistance of Primary board = | Y56: =IF($AJ$14<>0,"N/A",AF40) -> 1.68 | AA56: kN/m | AE56: 1 | AF56: Particleboard | AG56: 12 | AH56: 3 | AI56: 150 | AJ56: =IF($AJ$12=1,0.85,1)*1.68 -> 1.68 | AK56: =IF($AJ$12=1,0.85,1)*0.84 -> 0.84 | AL56: =IF($AJ$12=1,0.85,1)*0.28 -> 0.28 | AM56: =IF($AJ$12=1,0.85,1)*0.18*IF(AND(K25=AI23,$K$32=$AE$19),1.5,1) -> 0.18 | AN56: =IF($AJ$12=1,0.85,1)*0.12*IF(AND($K$25=$AI$22,$K$32=$AE$19),1.5,1) -> 0.12
C57: Euler critical stress per stud 'σe' = | K57: =IF(OR(AH8,AH11,AH12),"N/A",IF($AF$23=$AE$23,AN36,"N/A")) -> 26.20 | M57: N/mm2 | P57: Basic racking resistance of Secondary board = | Y57: =IF(AND(K25<>AI17,$AJ$14=0),AH40,"N/A") -> 0.84 | AA57: kN/m | AE57: 4 | AF57: Plasterboard | AG57: 12.5 | AH57: =IF($K$32=$AE$20,3.5,2.65) -> 2.65 | AI57: =IF($K$32=$AE$20,300,150) -> 150 | AJ57: =IF($AJ$12=1,0.85,1)*0.4*IF($K$32=$AE$19,1.5,1) -> 0.6 | AK57: N/A | AL57: N/A | AM57: N/A | AN57: =IF($AJ$12=1,0.85,1)*0.2*IF($K$32=$AE$19,1.5,1) -> 0.3
C58: Euler coefficient 'Keu' = | K58: =IF(OR(AH8,AH11,AH12),"N/A",IF($AF$23=$AE$23,AN37,"N/A")) -> 0.83 | P58: Racking resistance of wall panel 'Rw' = | Y58: =IF($AJ$14=0,AK41,"N/A") -> 17.33 | AA58: kN | AE58: 3 | AF58: Plasterboard separating | AG58: 30 | AH58: =IF($K$32=$AE$20,3.5,2.65) -> 2.65 | AI58: =IF($K$32=$AE$20,300,150) -> 150 | AJ58: =IF($AJ$12=1,0.85,1)*0.6*IF($K$32=$AE$19,1.5,1) -> 0.9 | AK58: N/A | AL58: N/A | AM58: 0 | AN58: 0
C59: Utilisation factor = | K59: =IF(OR(AH8,AH11,AH12),"N/A",IF($AF$23=$AE$23,AN38,AN43)) -> 0.54 | P59: Racking resistance of masonry cladding 'Rm' = | Y59: =IF(AND(K29=AJ28,$AJ$14=0),AK43,"N/A") -> 2.00 | AA59: kN | AE59: 1 | AF59: Plywood | AG59: 9.5 | AH59: 3 | AI59: 150 | AJ59: =IF($AJ$12=1,0.85,1)*1.68 -> 1.68 | AK59: =IF($AJ$12=1,0.85,1)*0.84 -> 0.84 | AL59: =IF($AJ$12=1,0.85,1)*0.28 -> 0.28 | AM59: =IF($AJ$12=1,0.85,1)*0.18*IF(AND(K25=AI23,$K$32=$AE$19),1.5,1) -> 0.18 | AN59: =IF($AJ$12=1,0.85,1)*0.12*IF(AND($K$25=$AI$22,$K$32=$AE$19),1.5,1) -> 0.12
C60: =IF(OR(AH8,AH11,AH12),"Axial compression and bending check not applicable",IF(AF23=AE23,IF(K59<=1,"Axial compression and bending: OK","Axial compression and bending: NOT OK"),IF(K59<=1,"Axial tension and bending: OK","Axial tension and bending: NOT OK"))) -> Axial compression and bending: OK | P60: Total racking resistance 'R' = | Y60: =IF($AJ$14=0,AK45,"N/A") -> 19.33 | AA60: kN | AE60: 1 | AF60: Tempered hardboard | AG60: 6 | AH60: 3 | AI60: 150 | AJ60: =IF($AJ$12=1,0.85,1)*1.68 -> 1.68 | AK60: =IF($AJ$12=1,0.85,1)*0.84 -> 0.84 | AL60: =IF($AJ$12=1,0.85,1)*0.28 -> 0.28 | AM60: =IF($AJ$12=1,0.85,1)*0.18*IF(AND(K25=AI23,$K$32=$AE$19),1.5,1) -> 0.18 | AN60: =IF($AJ$12=1,0.85,1)*0.12*IF(AND($K$25=$AI$22,$K$32=$AE$19),1.5,1) -> 0.12
C62: Spreadsheet provided by: www.YourSpreadsheets.co.uk | P62: calculations are based on BS 5268-2: 2002 and BS 5268-6.1: 1996

Sheet database (hidden)
B3: Strength class | C3: Bending // | D3: Tension // | E3: Compression // | F3: Compression per | G3: Shear // | H3: E | I3: Emin
B5: C14
B6: C16
B7: C18
B8: C22
B9: C24 | C9: 7.5 | D9: 4.5 | E9: 7.9 | F9: 2.4 | G9: 0.71 | H9: 10800 | I9: 7200
B10: C27
B11: C30
B12: C35
B13: C40
B14: D30
B15: D35
B16: D40
B17: D50
B18: D60
B19: D70
B20: TH1 (OAK)
B21: TH2
B22: THA
B23: THB
B24: TH1 (Sweet Chestnut)
B25: none
D28: 1 | E28: 2
C29: 2 | D29: 1.11 | E29: 1.06
C30: 3 | D30: 1.16 | E30: 1.08
C31: 4 | D31: 1.19 | E31: 1.1
C32: 5 | D32: 1.21 | E32: 1.11
C33: 6 | D33: 1.23 | E33: 1.12
C34: 7 | D34: 1.24 | E34: 1.12
C35: 8 | D35: 1.25 | E35: 1.13
C36: More than 8 | D36: 1.25 | E36: 1.13
D39: 1 | E39: 2
C40: 2 | D40: 1.14 | E40: 1.06
C41: 3 | D41: 1.24 | E41: 1.08
C42: 4 | D42: 1.24 | E42: 1.1
C43: 5 | D43: 1.27 | E43: 1.11
C44: 6 | D44: 1.29 | E44: 1.12
C45: 7 | D45: 1.3 | E45: 1.12
C46: 8 | D46: 1.32 | E46: 1.13
D47: 1.32 | E47: 1.13
E56: K2
D57: Bending Par | E57: 0.8
D58: Tension Par | E58: 0.8
D59: Com Par | E59: 0.6
D60: Com Per | E60: 0.6
D61: Sh Par | E61: 0.9
D62: M E | E62: 0.8
E70: K15 | F70: K16 | G70: K17 | H70: K18 | I70: K19 | J70: K20
D71: Strength class | E71: Bending // | F71: Tension // | G71: Compression // | H71: Compression per | I71: Shear //
D78: C27 | E78: 1.1 | F78: 1.1 | G78: 1.04 | H78: 1.49 | I78: 1.49 | J78: 1
D79: C30 | E79: 1.1 | F79: 1.1 | G79: 1.04 | H79: 1.49 | I79: 1.49 | J79: 1
D80: C35 | E80: 1.1 | F80: 1.1 | G80: 1.04 | H80: 1.49 | I80: 1.49 | J80: 1
D81: C40 | E81: 1.1 | F81: 1.1 | G81: 1.04 | H81: 1.49 | I81: 1.49 | J81: 1
D82: D50 | E82: 1.1 | F82: 1.1 | G82: 1.04 | H82: 1.49 | I82: 1.49 | J82: 1 | L82: =IF(AND(C3="Glulam",C13="Vertical"),VLOOKUP(C12,database!C28:E35,MATCH(C4+1,database!D28:E28,0),FALSE),1) -> 1
D83: D60 | E83: 1.1 | F83: 1.1 | G83: 1.04 | H83: 1.49 | I83: 1.49 | J83: 1
D84: D70 | E84: 1.1 | F84: 1.1 | G84: 1.04 | H84: 1.49 | I84: 1.49 | J84: 1
F87: 4
D90: C16 | E90: 1.26 | F90: 1.26 | G90: 1.04 | H90: 1.55 | I90: 2.34 | J90: 1.07
D91: C18 | E91: 1.26 | F91: 1.26 | G91: 1.04 | H91: 1.55 | I91: 2.34 | J91: 1.07
D92: C22 | E92: 1.26 | F92: 1.26 | G92: 1.04 | H92: 1.55 | I92: 2.34 | J92: 1.07
D93: C24 | E93: 1.26 | F93: 1.26 | G93: 1.04 | H93: 1.55 | I93: 2.34 | J93: 1.07
D94: D30 | E94: 1.26 | F94: 1.26 | G94: 1.04 | H94: 1.55 | I94: 2.34 | J94: 1.07
D95: D35 | E95: 1.26 | F95: 1.26 | G95: 1.04 | H95: 1.55 | I95: 2.34 | J95: 1.07
D96: D40 | E96: 1.26 | F96: 1.26 | G96: 1.04 | H96: 1.55 | I96: 2.34 | J96: 1.07
F98: 5,6
D99: C16 | E99: 1.34 | F99: 1.34 | G99: 1.04 | H99: 1.55 | I99: 2.34 | J99: 1.07
D100: C18 | E100: 1.34 | F100: 1.34 | G100: 1.04 | H100: 1.55 | I100: 2.34 | J100: 1.07
D101: C22 | E101: 1.34 | F101: 1.34 | G101: 1.04 | H101: 1.55 | I101: 2.34 | J101: 1.07
D102: C24 | E102: 1.34 | F102: 1.34 | G102: 1.04 | H102: 1.55 | I102: 2.34 | J102: 1.07
D103: D30 | E103: 1.34 | F103: 1.34 | G103: 1.04 | H103: 1.55 | I103: 2.34 | J103: 1.07
D104: D35 | E104: 1.34 | F104: 1.34 | G104: 1.04 | H104: 1.55 | I104: 2.34 | J104: 1.07
D105: D40 | E105: 1.34 | F105: 1.34 | G105: 1.04 | H105: 1.55 | I105: 2.34 | J105: 1.07
F107: 7,8,9
D110: C16 | E110: 1.39 | F110: 1.39 | G110: 1.04 | H110: 1.55 | I110: 2.34 | J110: 1.07
D111: C18 | E111: 1.39 | F111: 1.39 | G111: 1.04 | H111: 1.55 | I111: 2.34 | J111: 1.07
D112: C22 | E112: 1.39 | F112: 1.39 | G112: 1.04 | H112: 1.55 | I112: 2.34 | J112: 1.07
D113: C24 | E113: 1.39 | F113: 1.39 | G113: 1.04 | H113: 1.55 | I113: 2.34 | J113: 1.07
D114: D30 | E114: 1.39 | F114: 1.39 | G114: 1.04 | H114: 1.55 | I114: 2.34 | J114: 1.07
D115: D35 | E115: 1.39 | F115: 1.39 | G115: 1.04 | H115: 1.55 | I115: 2.34 | J115: 1.07
D116: D40 | E116: 1.39 | F116: 1.39 | G116: 1.04 | H116: 1.55 | I116: 2.34 | J116: 1.07
F118: 10
D120: C16 | E120: 1.42 | F120: 1.42 | G120: 1.04 | H120: 1.55 | I120: 2.34 | J120: 1.07
D121: C18 | E121: 1.42 | F121: 1.42 | G121: 1.04 | H121: 1.55 | I121: 2.34 | J121: 1.07
D122: C22 | E122: 1.42 | F122: 1.42 | G122: 1.04 | H122: 1.55 | I122: 2.34 | J122: 1.07
D123: C24 | E123: 1.42 | F123: 1.42 | G123: 1.04 | H123: 1.55 | I123: 2.34 | J123: 1.07
D124: D30 | E124: 1.42 | F124: 1.42 | G124: 1.04 | H124: 1.55 | I124: 2.34 | J124: 1.07
D125: D35 | E125: 1.42 | F125: 1.42 | G125: 1.04 | H125: 1.55 | I125: 2.34 | J125: 1.07
D126: D40 | E126: 1.42 | F126: 1.42 | G126: 1.04 | H126: 1.55 | I126: 2.34 | J126: 1.07
D130: Glulam Properties
B134: Strength class | C134: Bending // | D134: Tension // | E134: Compression // | F134: Compression per | G134: Shear // | H134: E mean
B135: Parallam 2.0E PSL | C135: 16.8 | D135: 14.8 | E135: 15.1 | F135: 3.6 | G135: 2.2 | H135: 12750
B136: Timberstrand 1.3E LSL | C136: 10.6 | D136: 8 | E136: 8.5 | F136: 3.7 | G136: 2.8 | H136: 9000
B137: Timberstrand 1.5E LSL | C137: 13.1 | D137: 11.3 | E137: 11.7 | F137: 5.3 | G137: 2.8 | H137: 10300
B138: Kerto S-LVL SC1 | C138: 19.5 | D138: 13.5 | E138: 16.5 | F138: 3.2 | G138: 2.2 | H138: 13500
B139: Kerto S-LVL SC2 | C139: 17.5 | D139: 12.1 | E139: 14.8 | F139: 2.9 | G139: 2 | H139: 12850
B140: Kerto Q LVL | C140: 13.2 | D140: 8.9 | E140: 11.1 | F140: 5.2 | G140: 2.3 | H140: 9500
B141: Versa Lam LVL SC1 | C141: 19 | D141: 15 | E141: 19.5 | F141: 4.4 | G141: 2 | H141: 14000
B142: Versa Lam LVL SC2 | C142: 17.1 | D142: 13.5 | E142: 17.5 | F142: 4 | G142: 1.8 | H142: 13000

Sheet from author
B1: Version: 1.0. - FREE LITE VERSION | G1: © 2020 Damian Janicki
C3: For latest updates and news visit: | G3: Contact me at:
C4: www.YourSpreadsheets.co.uk | G4: info@yourspreadsheets.co.uk
C7: General information: Note: This spreadsheet contains macros.
C13: The Author takes no liability for use of this spreadsheet and gives no guarantee that it is error free. In no event shall the Author be responsible for any special, incidental or consequential damages whatsoever arising from the use of this spreadsheet, even if the Author has been advised of the possibility of such damage. This spreadsheet is a freeware and can be distributed freely but only in its original form. Reverse-engineering, decompiling or disassembling of this spreadsheet is not allowable. By using this spreadsheet you understand and agree with the above terms and conditions. You also acknowledge that you do not become the owner of this spreadsheet. Damian Janicki
C34: This is a Free Lite Version. The full version of the spreadsheet allows to: - Input your company information, change logo and change header information - Change wall height - Change stud width - Change wind load
C41: This spreadsheet is based on BS5268-2 (2002) and BS5268-6.1 (1996). Changelog: 15.03.2020 - v.1.0. - official release of the spreadsheet.
